fUSD/lending_fUSD_20250407
["ID","MTS","AMOUNT","RATE_DAILY","PERIOD"]
[357376142,1744023052239,-500.0,0.00052054,120]
[357376143,1744023052248,-872.59,0.00052054,120]
[357376144,1744023052257,-1831.2,0.00052054,120]
[357376145,1744023052267,-500.0,0.00052054,120]
[357376146,1744023052276,-500.0,0.00052054,120]
[357376147,1744023052287,-500.0,0.00052054,120]
[357376148,1744023052296,-500.0,0.00052054,120]
[357376149,1744023052306,-500.0,0.00052054,120]
[357376150,1744023052315,-500.0,0.00052054,120]
[357376151,1744023052325,-548.94642003,0.00052054,120]
[357376152,1744023052334,-684.54,0.00052054,120]
[357376153,1744023052343,-500.0,0.00052054,120]
[357376154,1744023052352,-500.0,0.00052054,120]
[357376155,1744023052362,-694.36,0.00052054,120]
[357376156,1744023052371,-500.0,0.00052054,120]
[357376157,1744023052380,-759.01,0.00052054,120]
[357376158,1744023052389,-500.0,0.00052054,120]
[357376159,1744023052398,-746.91,0.00052054,120]
[357376160,1744023052408,-500.0,0.00052054,120]
[357376161,1744023052418,-500.0,0.00052054,120]
[357376162,1744023052427,-500.0,0.00052054,120]
[357376163,1744023052436,-519.71,0.00052054,120]
[357376164,1744023052446,-500.0,0.00052054,120]
[357376165,1744023052455,-649.36,0.00052054,120]
[357376166,1744023052464,-500.0,0.00052054,120]
[357376167,1744023052473,-890.46,0.00052054,120]
[357376168,1744023052483,-500.0,0.00052054,120]
[357376169,1744023052492,-500.0,0.00052054,120]
[357376170,1744023052502,-300.26865623,0.00052054,120]
[357376171,1744023052511,-1791.13,0.00052054,120]
[357376172,1744023052521,-601.07551435,0.00052054,120]
[357376173,1744023052530,-574.56974374,0.00052054,120]
[357376174,1744023052539,-517.06,0.00052054,120]
[357376175,1744023052549,-619.51,0.00052054,120]
[357376176,1744023052559,-388.32952154,0.00052054,120]
[357376177,1744023052569,-613.77,0.00052054,120]
[357376178,1744023052578,-613.15,0.00052054,120]
[357376179,1744023052588,-500.0,0.00052054,120]
[357376180,1744023052597,-1245.5,0.00052054,120]
[357376181,1744023052606,-500.0,0.00052054,120]
[357376182,1744023052615,-631.70109011,0.00052054,120]
[357376183,1744023052624,-863.59,0.00052054,120]
[357376184,1744023052634,-500.0,0.00052054,120]
[357376185,1744023052643,-500.0,0.00052054,120]
[357376186,1744023052652,-745.31,0.00052054,120]
[357376187,1744023052661,-1058.44,0.00052054,120]
[357376188,1744023052670,-580.92224862,0.00052054,120]
[357376189,1744023052679,-500.0,0.00052054,120]
[357376190,1744023052688,-508.14739939,0.00052054,120]
[357376191,1744023052698,-800.07,0.00052054,120]
[357376192,1744023052706,-500.0,0.00052054,120]
[357376193,1744023052716,-500.0,0.00052054,120]
[357376194,1744023052725,-525.26637097,0.00052054,120]
[357376195,1744023052735,-558.11445303,0.00052054,120]
[357376196,1744023052747,-574.77050211,0.00052054,120]
[357376197,1744023052757,-1152.18,0.00052054,120]
[357376198,1744023052766,-500.0,0.00052054,120]
[357376199,1744023052775,-641.26,0.00052054,120]
[357376200,1744023052785,-500.0,0.00052054,120]
[357376201,1744023052797,-599.49,0.00052054,120]
[357376202,1744023052807,-1620.72,0.00052054,120]
[357376203,1744023052817,-1827.15,0.00052054,120]
[357376204,1744023052827,-500.0,0.00052054,120]
[357376205,1744023052837,-500.0,0.00052054,120]
[357376206,1744023052847,-500.0,0.00052054,120]
[357376207,1744023052856,-510.02833259,0.00052054,120]
[357376208,1744023052866,-500.0,0.00052054,120]
[357376209,1744023052875,-500.0,0.00052054,120]
[357376210,1744023052885,-461.85450292,0.00052054,120]
[357376211,1744023052894,-546.18,0.00052054,120]
[357376212,1744023052903,-608.56,0.00052054,120]
[357376213,1744023052913,-500.0,0.00052054,120]
[357376214,1744023052922,-500.0,0.00052054,120]
[357376216,1744023052931,-500.0,0.00052054,120]
[357376217,1744023052941,-768.32,0.00052054,120]
[357376218,1744023052950,-525.83462736,0.00052054,120]
[357376219,1744023052959,-500.0,0.00052054,120]
[357376220,1744023052969,-500.0,0.00052054,120]
[357376221,1744023052978,-500.0,0.00052054,120]
[357376222,1744023052987,-500.0,0.00052054,120]
[357376223,1744023052996,-736.33,0.00052054,120]
[357376224,1744023053006,-500.0,0.00052054,120]
[357376225,1744023053016,-1058.97,0.00052054,120]
[357376226,1744023053025,-500.0,0.00052054,120]
[357376227,1744023053035,-1554.26,0.00052054,120]
[357376228,1744023053044,-500.0,0.00052054,120]
[357376229,1744023053053,-852.5,0.00052054,120]
[357376230,1744023053062,-500.0,0.00052054,120]
[357376231,1744023053075,-500.0,0.00052054,120]
[357376232,1744023053084,-500.0,0.00052054,120]
[357376233,1744023053094,-500.0,0.00052054,120]
[357376234,1744023053103,-909.99,0.00052054,120]
[357376235,1744023053112,-1136.92,0.00052054,120]
[357376236,1744023053122,-917.77,0.00052054,120]
[357376237,1744023053131,-500.0,0.00052054,120]
[357376238,1744023053140,-500.0,0.00052054,120]
[357376239,1744023053150,-500.0,0.00052054,120]
[357376240,1744023053160,-1269.1,0.00052054,120]
[357376241,1744023053170,-524.12769209,0.00052054,120]
[357376242,1744023053179,-500.0,0.00052054,120]
[357376243,1744023053189,-540.97,0.00052054,120]
[357376244,1744023053199,-1123.58,0.00052054,120]
[357376245,1744023053209,-500.0,0.00052054,120]
[357376246,1744023053218,-500.0,0.00052054,120]
[357376247,1744023053228,-500.0,0.00052054,120]
[357376248,1744023053239,-500.0,0.00052054,120]
[357376249,1744023053249,-626.76,0.00052054,120]
[357376250,1744023053259,-691.99,0.00052054,120]
[357376251,1744023053269,-533.65535938,0.00052054,120]
[357376252,1744023053278,-500.0,0.00052054,120]
[357376253,1744023053287,-500.0,0.00052054,120]
[357376254,1744023053296,-500.0,0.00052054,120]
[357376255,1744023053306,-3064.34,0.00052054,120]
[357376256,1744023053316,-500.0,0.00052054,120]
[357376257,1744023053327,-2424.54,0.00052054,120]
[357376258,1744023053336,-564.98997828,0.00052054,120]
[357376259,1744023053345,-500.0,0.00052054,120]
[357376260,1744023053354,-500.0,0.00052054,120]
[357376261,1744023053364,-1821.44,0.00052054,120]
[357376262,1744023053373,-891.38,0.00052054,120]
[357376263,1744023053382,-500.0,0.00052054,120]
[357376264,1744023053391,-622.38,0.00052054,120]
[357376265,1744023053401,-856.39,0.00052054,120]
[357376266,1744023053410,-500.0,0.00052054,120]
[357376267,1744023053420,-500.0,0.00052054,120]
[357376268,1744023053430,-500.0,0.00052054,120]
[357376269,1744023053439,-500.0,0.00052054,120]
[357376270,1744023053448,-500.0,0.00052054,120]
[357376271,1744023053458,-1876.34,0.00052054,120]
[357376272,1744023053468,-500.0,0.00052054,120]
[357376273,1744023053478,-500.0,0.00052054,120]
[357376274,1744023053487,-500.0,0.00052054,120]
[357376275,1744023053497,-500.0,0.00052054,120]
[357376276,1744023053507,-500.0,0.00052054,120]
[357376277,1744023053517,-500.0,0.00052054,120]
[357376278,1744023053526,-500.0,0.00052054,120]
[357376279,1744023053535,-500.0,0.00052054,120]
[357376280,1744023053545,-500.0,0.00052054,120]
[357376281,1744023053555,-771.18,0.00052054,120]
[357376282,1744023053566,-500.0,0.00052054,120]
[357376283,1744023053576,-518.72720504,0.00052054,120]
[357376284,1744023053585,-302.31747305,0.00052054,30]
[357376285,1744023053595,-510.5950567,0.00052054,120]
[357376286,1744023053605,-500.0,0.00052054,120]
[357376287,1744023053615,-1178.95,0.00052054,120]
[357376288,1744023053625,-500.0,0.00052054,120]
[357376289,1744023053635,-1204.08,0.00052054,120]
[357376290,1744023053645,-503.84154729,0.00052054,120]
[357376291,1744023053655,-537.66969471,0.00052054,120]
[357376292,1744023053665,-500.0,0.00052054,120]
[357376293,1744023053674,-509.23170417,0.00052054,120]
[357376294,1744023053684,-712.94,0.00052054,120]
[357376295,1744023053694,-500.0,0.00052054,120]
[357376296,1744023053704,-500.0,0.00052054,120]
[357376297,1744023053715,-1000.0,0.00052054,120]
[357376298,1744023053725,-668.09,0.00052054,120]
[357376299,1744023053735,-500.0,0.00052054,120]
[357376300,1744023053744,-500.0,0.00052054,120]
[357376301,1744023053754,-749.4,0.00052054,120]
[357376302,1744023053764,-447.1508322,0.00052054,120]
[357376303,1744023053774,-500.0,0.00052054,120]
[357376304,1744023053785,-500.0,0.00052054,120]
[357376305,1744023053798,-500.0,0.00052054,120]
[357376306,1744023053808,-511.93,0.00052054,120]
[357376307,1744023053819,-577.2,0.00052054,120]
[357376308,1744023053828,-500.0,0.00052054,120]
[357376309,1744023053838,-500.0,0.00052054,120]
[357376310,1744023053848,-2142.78,0.00052054,120]
[357376311,1744023053857,-500.0,0.00052054,120]
[357376312,1744023053867,-500.0,0.00052054,120]
[357376313,1744023053877,-500.0,0.00052054,120]
[357376314,1744023053887,-785.05,0.00052054,120]
[357376315,1744023053896,-1319.22,0.00052054,120]
[357376316,1744023053906,-500.0,0.00052054,120]
[357376317,1744023053916,-548.16,0.00052054,120]
[357376318,1744023053926,-500.0,0.00052054,120]
[357376319,1744023053936,-500.0,0.00052054,120]
[357376320,1744023053945,-500.0,0.00052054,120]
[357376321,1744023053955,-647.38,0.00052054,120]
[357376322,1744023053965,-500.0,0.00052054,120]
[357376323,1744023053975,-500.0,0.00052054,120]
[357376324,1744023053985,-500.0,0.00052054,120]
[357376325,1744023053994,-500.0,0.00052054,120]
[357376326,1744023054003,-500.0,0.00052054,120]
[357376327,1744023054013,-500.0,0.00052054,120]
[357376328,1744023054022,-910.2,0.00052054,120]
[357376329,1744023054032,-500.0,0.00052054,120]
[357376330,1744023054042,-500.0,0.00052054,120]
[357376331,1744023054052,-500.0,0.00052054,120]
[357376332,1744023054062,-500.0,0.00052054,120]
[357376333,1744023054076,-500.0,0.00052054,120]
[357376334,1744023054086,-500.0,0.00052054,120]
[357376335,1744023054096,-500.0,0.00052054,120]
[357376336,1744023054105,-500.0,0.00052054,10]
[357376337,1744023054115,-670.93,0.00052054,120]
[357376338,1744023054125,-504.95443782,0.00052054,120]
[357376339,1744023054135,-500.0,0.00052054,120]
[357376340,1744023054146,-690.75,0.00052054,120]
[357376341,1744023054155,-500.0,0.00052054,120]
[357376342,1744023054164,-500.0,0.00052054,120]
[357376343,1744023054174,-685.93,0.00052054,120]
[357376344,1744023054184,-561.99,0.00052054,120]
[357376345,1744023054193,-500.0,0.00052054,120]
[357376346,1744023054203,-743.24,0.00052054,120]
[357376347,1744023054212,-500.0,0.00052054,120]
[357376348,1744023054222,-500.0,0.00052054,120]
[357376349,1744023054231,-500.0,0.00052054,120]
[357376350,1744023054240,-500.0,0.00052054,120]
[357376351,1744023054250,-719.92,0.00052054,120]
[357376352,1744023054259,-549.77,0.00052054,120]
[357376353,1744023054268,-500.0,0.00052054,120]
[357376354,1744023054277,-781.95,0.00052054,120]
[357376355,1744023054287,-500.0,0.00052054,120]
[357376356,1744023054296,-826.61,0.00052054,120]
[357376357,1744023054306,-500.0,0.00052054,120]
[357376358,1744023054318,-500.0,0.00052054,120]
[357376359,1744023054327,-500.0,0.00052054,120]
[357376360,1744023054337,-500.0,0.00052054,120]
[357376361,1744023054346,-500.0,0.00052054,120]
[357376362,1744023054356,-500.0,0.00052054,120]
[357376363,1744023054366,-500.0,0.00052054,120]
[357376364,1744023054376,-500.0,0.00052054,120]
[357376365,1744023054385,-1017.91,0.00052054,120]
[357376366,1744023054395,-500.0,0.00052054,120]
[357376367,1744023054405,-500.0,0.00052054,120]
[357376368,1744023054414,-216.94362937,0.00052054,120]
[357376369,1744023054424,-702.54,0.00052054,120]
[357376370,1744023054433,-500.0,0.00052054,120]
[357376371,1744023054443,-1320.02,0.00052054,120]
[357376372,1744023054452,-500.0,0.00052054,120]
[357376373,1744023054461,-653.59,0.00052054,120]
[357376374,1744023054649,-111949.85,0.00052054,7]
[357376375,1744023054659,-500.0,0.00052054,120]
[357376376,1744023054669,-508.71127547,0.00052054,120]
[357376377,1744023054678,-500.0,0.00052054,120]
[357376378,1744023054688,-500.0,0.00052054,120]
[357376379,1744023054698,-1302.73,0.00052054,120]
[357376380,1744023054707,-981.13,0.00052054,120]
[357376381,1744023054716,-500.0,0.00052054,120]
[357376382,1744023054726,-13506.43,0.00052054,120]
[357376383,1744023054735,-500.0,0.00052054,120]
[357376384,1744023054744,-500.0,0.00052054,120]
[357376385,1744023054754,-500.0,0.00052054,120]
[357376386,1744023054765,-500.0,0.00052054,120]
[357376387,1744023054774,-1221.52,0.00052054,120]
[357376388,1744023054787,-500.0,0.00052054,120]
[357376389,1744023054798,-1073.31,0.00052054,120]
[357376390,1744023054807,-500.0,0.00052054,120]
[357376391,1744023054819,-500.0,0.00052054,120]
[357376392,1744023054829,-526.32,0.00052054,120]
[357376393,1744023054839,-500.0,0.00052054,120]
[357376394,1744023054848,-500.0,0.00052054,120]
[357376395,1744023054858,-1927.85,0.00052054,120]
[357376396,1744023054869,-1189.09,0.00052054,120]
[357376397,1744023054879,-500.0,0.00052054,120]
[357376398,1744023054888,-500.0,0.00052054,120]
[357376399,1744023054898,-500.0,0.00052054,120]
[357376400,1744023054907,-1387.98,0.00052054,120]
[357376401,1744023054916,-3865.46,0.00052054,120]
[357376402,1744023054925,-500.0,0.00052054,120]
[357376403,1744023054936,-515.89,0.00052054,120]
[357376404,1744023054945,-509.46457147,0.00052054,120]
[357376405,1744023054954,-500.0,0.00052054,120]
[357376406,1744023054964,-500.0,0.00052054,120]
[357376407,1744023054973,-500.0,0.00052054,120]
[357376408,1744023054982,-500.0,0.00052054,120]
[357376409,1744023054991,-500.0,0.00052054,120]
[357376410,1744023055001,-1447.88,0.00052054,120]
[357376411,1744023055010,-500.0,0.00052054,120]
[357376412,1744023055019,-500.0,0.00052054,120]
[357376413,1744023055029,-500.0,0.00052054,120]
[357376414,1744023055038,-500.0,0.00052054,120]
[357376415,1744023055047,-500.0,0.00052054,120]
[357376416,1744023055056,-500.0,0.00052054,120]
[357376417,1744023055066,-500.0,0.00052054,120]
[357376418,1744023055075,-602.13381698,0.00052054,120]
[357376419,1744023055084,-500.0,0.00052054,120]
[357376420,1744023055093,-1786.21,0.00052054,120]
[357376421,1744023055102,-536.69,0.00052054,120]
[357376422,1744023055111,-1781.79,0.00052054,100]
[357376423,1744023055121,-500.0,0.00052054,120]
[357376424,1744023055130,-732.06,0.00052054,120]
[357376425,1744023055139,-500.0,0.00052054,120]
[357376426,1744023055148,-500.0,0.00052054,120]
[357376427,1744023055158,-500.0,0.00052054,120]
[357376428,1744023055167,-537.26082727,0.00052054,60]
[357376429,1744023055176,-2754.6,0.00052054,120]
[357376430,1744023055185,-500.0,0.00052054,120]
[357376431,1744023055194,-526.60557138,0.00052054,7]
[357376432,1744023055204,-595.94,0.00052054,120]
[357376433,1744023055213,-604.68479431,0.00052054,120]
[357376434,1744023055222,-1933.85,0.00052054,120]
[357376435,1744023055231,-1297.31,0.00052054,2]
[357376436,1744023055241,-552.43134071,0.00052054,120]
[357376437,1744023055250,-500.0,0.00052054,120]
[357376438,1744023055259,-500.0,0.00052054,120]
[357376439,1744023055269,-454.9158775,0.00052054,120]
[357376440,1744023055278,-200.0,0.00052054,7]
[357376441,1744023055287,-1029.49,0.00052054,120]
[357376442,1744023055297,-500.0,0.00052054,120]
[357376443,1744023055307,-281.803215,0.00052054,120]
[357376444,1744023055318,-529.45458773,0.00052054,120]
[357376445,1744023055328,-500.0,0.00052054,120]
[357376446,1744023055337,-517.68811423,0.00052054,120]
[357376447,1744023055348,-598.37,0.00052054,120]
[357376448,1744023055357,-598.37,0.00052054,120]
[357376449,1744023055367,-598.37,0.00052054,120]
[357376450,1744023055377,-500.0,0.00052054,120]
[357376451,1744023055387,-500.0,0.00052054,120]
[357376452,1744023055396,-598.37,0.00052054,120]
[357376453,1744023055405,-597.57,0.00052054,120]
[357376454,1744023055415,-598.37,0.00052054,120]
[357376455,1744023055424,-500.0,0.00052054,120]
[357376456,1744023055434,-500.0,0.00052054,120]
[357376457,1744023055443,-500.0,0.00052054,120]
[357376458,1744023055453,-500.0,0.00052054,120]
[357376459,1744023055462,-1732.78,0.00052054,120]
[357376460,1744023055473,-1319.4,0.00052054,120]
[357376461,1744023055483,-1258.11,0.00052054,120]
[357376462,1744023055493,-500.0,0.00052054,120]
[357376463,1744023055503,-500.0,0.00052054,120]
[357376464,1744023055513,-500.0,0.00052054,120]
[357376465,1744023055523,-500.0,0.00052054,120]
[357376466,1744023055533,-523.8482632,0.00052054,120]
[357376467,1744023055543,-500.0,0.00052054,120]
[357376468,1744023055553,-835.36,0.00052054,120]
[357376469,1744023055562,-500.0,0.00052054,120]
[357376470,1744023055573,-500.0,0.00052054,120]
[357376471,1744023055583,-500.0,0.00052054,120]
[357376472,1744023055593,-500.0,0.00052054,120]
[357376473,1744023055602,-500.0,0.00052054,120]
[357376474,1744023055612,-963.3,0.00052054,120]
[357376475,1744023055622,-500.0,0.00052054,120]
[357376476,1744023055631,-585.2,0.00052054,120]
[357376477,1744023055641,-675.5,0.00052054,120]
[357376478,1744023055651,-646.89,0.00052054,120]
[357376479,1744023055660,-1608.07,0.00052054,120]
[357376480,1744023055670,-641.84,0.00052054,120]
[357376481,1744023055679,-232.46091883,0.00052054,120]
[357376482,1744023055689,-500.0,0.00052054,120]
[357376483,1744023055698,-2591.89,0.00052054,120]
[357376484,1744023055708,-839.69,0.00052054,30]
[357376485,1744023055719,-548.42041158,0.00052054,120]
[357376486,1744023055728,-4420.92,0.00052054,120]
[357376487,1744023055737,-1773.29,0.00052054,120]
[357376488,1744023055746,-500.0,0.00052054,120]
[357376489,1744023055755,-500.0,0.00052054,120]
[357376490,1744023055764,-500.0,0.00052054,120]
[357376491,1744023055774,-445.85,0.00052054,120]
[357376492,1744023055786,-500.0,0.00052054,120]
[357376493,1744023055795,-500.0,0.00052054,120]
[357376494,1744023055805,-799.0,0.00052054,120]
[357376495,1744023055814,-500.0,0.00052054,120]
[357376496,1744023055823,-500.0,0.00052054,120]
[357376497,1744023055833,-685.79,0.00052054,120]
[357376498,1744023055842,-2093.1,0.00052054,120]
[357376499,1744023055851,-500.0,0.00052054,120]
[357376500,1744023055862,-690.21,0.00052054,120]
[357376501,1744023055871,-500.0,0.00052054,120]
[357376502,1744023055880,-989.16,0.00052054,120]
[357376503,1744023055889,-500.0,0.00052054,120]
[357376504,1744023055898,-500.0,0.00052054,120]
[357376505,1744023055907,-500.0,0.00052054,120]
[357376506,1744023055916,-500.0,0.00052054,120]
[357376507,1744023055925,-500.0,0.00052054,120]
[357376508,1744023055934,-500.0,0.00052054,120]
[357376509,1744023055943,-856.43,0.00052054,120]
[357376510,1744023055952,-1233.75,0.00052054,120]
[357376511,1744023055961,-500.0,0.00052054,120]
[357376512,1744023055970,-500.0,0.00052054,120]
[357376513,1744023055979,-963.77,0.00052054,120]
[357376514,1744023055989,-533.71038634,0.00052054,120]
[357376515,1744023055998,-500.0,0.00052054,120]
[357376516,1744023056008,-500.0,0.00052054,120]
[357376517,1744023056017,-814.82,0.00052054,120]
[357376518,1744023056026,-500.0,0.00052054,120]
[357376519,1744023056035,-500.0,0.00052054,120]
[357376520,1744023056044,-572.45,0.00052054,120]
[357376521,1744023056053,-500.0,0.00052054,120]
[357376522,1744023056062,-850.99,0.00052054,120]
[357376523,1744023056073,-500.0,0.00052054,120]
[357376524,1744023056082,-834.45,0.00052054,120]
[357376525,1744023056091,-877.75,0.00052054,120]
[357376526,1744023056100,-500.0,0.00052054,120]
[357376527,1744023056110,-500.0,0.00052054,120]
[357376528,1744023056119,-553.15,0.00052054,120]
[357376529,1744023056128,-500.0,0.00052054,120]
[357376530,1744023056137,-1339.14,0.00052054,120]
[357376531,1744023056147,-500.0,0.00052054,120]
[357376532,1744023056157,-500.0,0.00052054,120]
[357376533,1744023056167,-500.0,0.00052054,120]
[357376534,1744023056176,-500.0,0.00052054,120]
[357376535,1744023056185,-500.0,0.00052054,2]
[357376536,1744023056195,-500.0,0.00052054,120]
[357376537,1744023056204,-1519.64,0.00052054,120]
[357376538,1744023056214,-500.0,0.00052054,120]
[357376539,1744023056223,-500.0,0.00052054,120]
[357376540,1744023056233,-1000.0,0.00052054,120]
[357376541,1744023056242,-500.0,0.00052054,120]
[357376542,1744023056252,-500.0,0.00052054,120]
[357376543,1744023056261,-500.0,0.00052054,120]
[357376544,1744023056271,-1045.34,0.00052054,120]
[357376545,1744023056280,-2000.0,0.00052054,30]
[357376546,1744023056289,-670.45,0.00052054,120]
[357376547,1744023056298,-500.0,0.00052054,120]
[357376548,1744023056307,-500.0,0.00052054,120]
[357376549,1744023056316,-500.0,0.00052054,120]
[357376550,1744023056325,-3500.0,0.00052054,10]
[357376551,1744023056335,-659.1,0.00052054,5]
[357376552,1744023056343,-500.0,0.00052054,120]
[357376553,1744023056353,-500.0,0.00052054,120]
[357376554,1744023056362,-1558.87,0.00052054,120]
[357376555,1744023056370,-517.55683051,0.00052054,120]
[357376556,1744023056379,-500.0,0.00052054,120]
[357376557,1744023056388,-1092.32,0.00052054,120]
[357376558,1744023056397,-667.16,0.00052054,120]
[357376559,1744023056406,-1041.78,0.00052054,120]
[357376560,1744023056415,-809.41,0.00052054,120]
[357376561,1744023056423,-500.0,0.00052054,120]
[357376562,1744023056433,-531.73826365,0.00052054,120]
[357376563,1744023056442,-500.0,0.00052054,120]
[357376564,1744023056451,-500.0,0.00052054,120]
[357376565,1744023056460,-500.0,0.00052054,120]
[357376566,1744023056469,-500.0,0.00052054,120]
[357376567,1744023056478,-579.25475422,0.00052054,120]
[357376568,1744023056487,-500.0,0.00052054,120]
[357376569,1744023056496,-560.67,0.00052054,120]
[357376570,1744023056505,-645.62,0.00052054,120]
[357376571,1744023056514,-879.67,0.00052054,120]
[357376572,1744023056523,-258.12479212,0.00052054,120]
[357376573,1744023056532,-500.0,0.00052054,120]
[357376574,1744023056540,-500.0,0.00052054,120]
[357376575,1744023056549,-500.0,0.00052054,120]
[357376576,1744023056559,-500.0,0.00052054,120]
[357376577,1744023056569,-500.0,0.00052054,2]
[357376578,1744023056578,-762.9,0.00052054,120]
[357376579,1744023056586,-500.0,0.00052054,120]
[357376580,1744023056595,-500.0,0.00052054,120]
[357376581,1744023056604,-500.0,0.00052054,120]
[357376582,1744023056613,-570.66,0.00052054,120]
[357376583,1744023056622,-500.0,0.00052054,120]
[357376584,1744023056631,-500.0,0.00052054,120]
[357376585,1744023056640,-500.0,0.00052054,120]
[357376586,1744023056649,-500.0,0.00052054,120]
[357376587,1744023056658,-501.49452565,0.00052054,2]
[357376588,1744023056667,-938.08,0.00052054,120]
[357376589,1744023056676,-500.0,0.00052054,120]
[357376590,1744023056686,-500.0,0.00052054,120]
[357376591,1744023056695,-500.0,0.00052054,2]
[357376592,1744023056704,-790.59,0.00052054,120]
[357376593,1744023056714,-500.0,0.00052054,120]
[357376594,1744023056724,-1570.59,0.00052054,120]
[357376595,1744023056734,-1043.73,0.00052054,120]
[357376596,1744023056743,-500.0,0.00052054,120]
[357376597,1744023056753,-642.8,0.00052054,120]
[357376598,1744023056763,-500.0,0.00052054,120]
[357376599,1744023056772,-500.0,0.00052054,120]
[357376600,1744023056782,-502.17896105,0.00052054,120]
[357376601,1744023056796,-500.0,0.00052054,120]
[357376602,1744023056805,-550.65,0.00052054,120]
[357376603,1744023056815,-514.24,0.00052054,120]
[357376604,1744023056825,-279.02155818,0.00052054,120]
[357376605,1744023056834,-500.0,0.00052054,120]
[357376606,1744023056844,-500.926054,0.00052054,2]
[357376607,1744023056854,-500.0,0.00052054,120]
[357376608,1744023056866,-500.0,0.00052054,120]
[357376609,1744023056875,-1363.75,0.00052054,120]
[357376610,1744023056884,-500.0,0.00052054,120]
[357376611,1744023056894,-500.0,0.00052054,120]
[357376612,1744023056903,-2190.72,0.00052054,120]
[357376613,1744023056914,-500.0,0.00052054,120]
[357376614,1744023056923,-561.88974198,0.00052054,120]
[357376615,1744023056932,-1853.66,0.00052054,120]
[357376616,1744023056942,-1033.91,0.00052054,120]
[357376617,1744023056951,-500.0,0.00052054,120]
[357376618,1744023056960,-649.55,0.00052054,120]
[357376619,1744023056969,-500.0,0.00052054,120]
[357376620,1744023056979,-500.0,0.00052054,120]
[357376621,1744023056988,-1334.19,0.00052054,120]
[357376622,1744023056997,-235.82459942,0.00052054,120]
[357376623,1744023057007,-995.01,0.00052054,120]
[357376624,1744023057016,-500.0,0.00052054,120]
[357376625,1744023057025,-500.0,0.00052054,120]
[357376626,1744023057034,-500.0,0.00052054,120]
[357376627,1744023057043,-500.0,0.00052054,120]
[357376628,1744023057053,-500.0,0.00052054,120]
[357376629,1744023057063,-1330.59,0.00052054,120]
[357376630,1744023057074,-500.0,0.00052054,120]
[357376631,1744023057083,-1474.81,0.00052054,120]
[357376632,1744023057092,-500.0,0.00052054,120]
[357376633,1744023057102,-1067.6,0.00052054,120]
[357376634,1744023057111,-572.58,0.00052054,120]
[357376635,1744023057119,-564.11,0.00052054,120]
[357376636,1744023057129,-500.0,0.00052054,120]
[357376637,1744023057138,-653.83,0.00052054,120]
[357376638,1744023057147,-922.8,0.00052054,120]
[357376639,1744023057156,-500.0,0.00052054,120]
[357376640,1744023057165,-500.0,0.00052054,120]
[357376641,1744023057174,-500.0,0.00052054,120]
[357376642,1744023057183,-500.0,0.00052054,120]